Workbook

Sheet Calculadora de Tarifas
S4: Simulador de Faturas (Tarifas vigentes a partir de 01/08/2021)
K6: Simulador de Faturas | R6: 1 - Digite o volume total consumido (m³)
AN7: 2
R8: 2 - Clique no serviço oferecido | AF8: Auxiliar de cálculo das macros
C9: 1 | D9: Volume Consumido | K9: 1 - Digite o volume total consumido (m³)
C10: 2 | D10: Prestador | E10: 2.1 | F10: Copasa | K10: 2 - Seu prestador | M10: Copanor | R10: 3 - Digite o número de economias* | U10: Categorias | W10: Número de economias | X10: Valor Água | Z10: Valor Esgoto | AB10: Valor Total | AF10: 1 | AG10: Índice Casa/Prédio
E11: 2.2 | F11: Copanor | K11: 3 - Selecione a sua categoria | R11: relativas a cada categoria | U11: =IF($M$10="Cesama",F25,F18) -> Residencial Social | AB11: =SUM(X11:AA11) -> 0 | AF11: =IF(AF10=1,1,IF(AF10=2,M15,"Erro")) -> 1 | AG11: Total de Economias Residenciais
E12: 2.3 | F12: Saae Itabira | K12: 4 - Selecione o serviço oferecido | M12: =IF(AN7=1,"Só água",IF(AN7=2,"Água e Esgoto Dinâmico",IF(AN7=3,"Água e Esgoto Estático",IF(AN7=4,"Só Esgoto Dinâmico",IF(AN7=5,"Só Esgoto Estático",""))))) -> Água e Esgoto Dinâmico | U12: =IF($M$10="Cesama",F26,F19) -> Residencial | AB12: 0
E13: 2.4 | F13: Saae Passos | U13: Comercial | AB13: 0 | AF13: =U6/W17 ->  | AI13: Volume por Economia
E14: 2.5 | F14: SAE Ituiutaba | K14: Casa | M14: Quantidade de apartamentos por hidrômetro | U14: Industrial | AB14: 0 | AI14: Valor Original
E15: 2.6 | F15: Cesama | K15: Prédio | M15: 1 | U15: Pública | AB15: 0
U16: =IF($M$10="Cesama",F30,IF($M$10="Copanor",F38,F23)) ->  | AB16: 0 | AH16: =IFERROR(AF16*$W11,"") ->  | AJ16: =IFERROR(AG16*$W11,"") ->  | AM16: =IF($M$10="Cesama",F25,F18) -> Residencial Social
C17: 3 | D17: Categoria | E17: COPASA, Saae de Passos, Itabira, Sae de Ituiutaba | K17: Serviço | M17: Água | N17: Esgoto | O17: Total | U17: Valor Total | W17: =SUM(W11:W16) -> 0 | X17: =SUM(X11:Y16) -> 0 | Z17: =SUM(Z11:AA16) -> 0 | AB17: =ROUNDDOWN(SUM(X17:AA17),2) -> 0 | AH17: =IFERROR(AF17*$W12,"") ->  | AM17: =IF($M$10="Cesama",F26,F19) -> Residencial
E18: 3.1 | F18: Residencial Social | K18: Valor | M18: =IFERROR(IF(OR(M12=F46,M12=F47,M12=F48),INDIRECT("'"&M10&"'!"&"S14"),"")*AF11,"") -> 0 | N18: =IFERROR(IF(OR(M12=F47,M12=F49),INDIRECT("'"&M10&"'!"&"t14"),IF(OR(M12=F48,M12=F50),INDIRECT("'"&M10&"'!"&"u14"),""))*AF11,"") -> 0 | O18: =SUM(M18:N18) -> 0 | AM18: Comercial
E19: 3.2 | F19: Residencial | S19: * Economia faz referência ao número de unidades familiares, comerciais ou produtivas que existem para um mesmo hidrômetro/ligação. Existindo em um mesma construção, com hidrômetro único, três famílias e duas lojas, têm-se 3 economias residenciais e 2 economias comerciais para 1 ligação | AM19: Industrial
E20: 3.3 | F20: Comercial | AM20: Pública
E21: 3.4 | F21: Industrial | AH21: =IFERROR(AF21*$W16,"") ->  | AJ21: =IFERROR(AG21*$W16,"") ->  | AM21: =IF($M$10="Cesama",F30,IF($M$10="Copanor",F38,F23)) -> 
E22: 3.5 | F22: Pública
F23: ="" -> 
E24: Cesama | K24: Agência Reguladora de Serviços de Abastecimento de Água e Esgotamento Sanitário do Estado de MG - ARSAE
E25: 3.1 | F25: Residencial Social | S25: Agência Reguladora de Serviços de Abastecimento de Água e Esgotamento Sanitário do Estado de MG - ARSAE
E26: 3.6 | F26: Residencial Unifamiliar
E27: 3.7 | F27: Residencial Multifamiliar
E28: 3.3 | F28: Comercial | R28: Notas: - Esta calculadora não é ajustada para cálculos em meses com mudança de tarifas. Nestas situações o prestador aplicará tanto as tarifas novas quanto as antigas de acordo com o período de leitura do
E29: 3.4 | F29: Industrial | R29: hidrômetro e com a data da mudança das tarifas, individualizando o cálculo.
E30: 3.5 | F30: Pública | R30: - Diferenças de poucos centavos podem ocorrer devido a critérios de arredondamentos adotados.
E32: Copanor
E33: 3.2 | F33: Residencial
E34: 3.3 | F34: Comercial
E35: 3.4 | F35: Industrial
E36: 3.5 | F36: Pública
F37: ="" -> 
C38: 4 | D38: Serviço oferecido | E38: COPASA | F38: ="" -> 
E39: 4.10 | F39: Só água
E40: 4.15 | F40: Água e coleta de esgoto
E41: 4.20 | F41: Água com coleta e tratamento de esgoto
E42: 4.25 | F42: Só coleta de esgoto
E43: 4.30 | F43: Só tratamento de esgoto
E45: COPANOR
E46: 4.10 | F46: Só água
E47: 4.15 | F47: Água e Esgoto Dinâmico
E48: 4.20 | F48: Água e Esgoto Estático
E49: 4.25 | F49: Só Esgoto Dinâmico
E50: 4.30 | F50: Só Esgoto Estático
E55: SAAE de Passos, Itabira, Sae de Ituiutaba e Cesama
E56: 4.1 | F56: Só água
F57: Água e esgoto
F58: Só esgoto

Sheet Tutorial de preenchimento
AF5: Exemplo de uso do simulador

Sheet Quadro Tarifário
B3: TABELA TARIFÁRIA COPANOR
B4: Vigência: Agosto/2021 a Julho/2022
B5: RESOLUÇÃO ARSAE-MG 155/2021, DE 28 DE JUNHO DE 2021

Sheet Copanor (hidden)
E5: Tabela Tarifária II - Tarifas Aplicáveis aos Usuários
E7: Considerar apenas as colunas correspondentes aos serviços prestados:
E8: - Água: Abastecimento de água
E9: - ED: esgotamento dinâmico
E10: - EE: esgotamento estático
E12: Categoria | F12: Faixa | G12: Tarifas de Aplicação | S12: Valor
G13: Agosto/20 a Julho/21 | S13: Água | T13: ED | U13: EE
G14: 1 | H14: 2 | I14: 3 | J14: Unidade | O14: Categoria | P14: ='Calculadora de Tarifas'!M11 -> 0 | S14: =(IF(P17=0,SUMIFS(G16:G55,B16:B55,P14,D16:D55,R17)*P15+SUMIFS(G16:G55,B16:B55,P14,D16:D55,P17),SUMIFS(K16:K55,B16:B55,P14,D16:D55,P17)+(P15-P17)*SUMIFS(G16:G55,B16:B55,P14,D16:D55,R17))) -> 0 | T14: =(IF(P17=0,SUMIFS(H16:H55,B16:B55,P14,D16:D55,R17)*P15+SUMIFS(H16:H55,B16:B55,P14,D16:D55,P17),SUMIFS(L16:L55,B16:B55,P14,D16:D55,P17)+(P15-P17)*SUMIFS(H16:H55,B16:B55,P14,D16:D55,R17))) -> 0 | U14: =(IF(P17=0,SUMIFS(I16:I55,B16:B55,P14,D16:D55,R17)*P15+SUMIFS(I16:I55,B16:B55,P14,D16:D55,P17),SUMIFS(M16:M55,B16:B55,P14,D16:D55,P17)+(P15-P17)*SUMIFS(I16:I55,B16:B55,P14,D16:D55,R17))) -> 0
G15: Água | H15: ED | I15: EE | O15: Consumo (m³) | P15: ='Calculadora de Tarifas'!U6/'Calculadora de Tarifas'!AF11 -> 0
B16: Residencial Social | D16: 0 | E16: Residencial Social | F16: Fixa | G16: 4.64 | H16: 3.43 | I16: 1.4 | J16: R$/mês
B17: Residencial Social | C17: 0 | D17: 3 | F17: 0 a 3 m³ | G17: 0.72 | H17: 0.53 | I17: 0.21 | J17: R$/m³ | K17: =G16+($D17-$C17)*G17 -> 6.8 | L17: =H16+($D17-$C17)*H17 -> 5.02 | M17: =I16+($D17-$C17)*I17 -> 2.03 | P17: =IFERROR(INDEX(IF(B16:B55=P14,D16:D55,"Erro"),MATCH(P15,IF(B16:B55=P14,D16:D55,"Erro"),1),),"0") -> 0 | Q17: a | R17: =IFERROR(INDEX(IF(B16:B55=P14,D16:D55,"Erro"),MATCH(P15,IF(B16:B55=P14,D16:D55,"Erro"),1)+1,),"3") -> 3 | S17: m³
B18: Residencial Social | C18: 3 | D18: 6 | F18: > 3 a 6 m³ | G18: 0.898 | H18: 0.664 | I18: 0.269 | J18: R$/m³ | K18: =K17+($D18-$C18)*G18 -> 9.494 | L18: =L17+($D18-$C18)*H18 -> 7.012 | M18: =M17+($D18-$C18)*I18 -> 2.837
B19: Residencial Social | C19: 6 | D19: 10 | F19: > 6 a 10 m³ | G19: 1.916 | H19: 1.417 | I19: 0.575 | J19: R$/m³ | K19: 17.158 | L19: 12.68 | M19: 5.137
B20: Residencial Social | C20: 10 | D20: 15 | F20: > 10 a 15 m³ | G20: 2.97 | H20: 2.197 | I20: 0.891 | J20: R$/m³ | K20: 32.008 | L20: 23.665 | M20: 9.592
B21: Residencial Social | C21: 15 | D21: 20 | F21: > 15 a 20 m³ | G21: 4.054 | H21: 3 | I21: 1.216 | J21: R$/m³ | K21: 52.278 | L21: 38.665 | M21: 15.672
B22: Residencial Social | C22: 20 | D22: 40 | F22: > 20 a 40 m³ | G22: 8.595 | H22: 6.36 | I22: 2.578 | J22: R$/m³ | K22: =K21+($D22-$C22)*G22 -> 224.178 | L22: 165.865 | M22: 67.232
B23: Residencial Social | C23: 40 | D23: 999999 | F23: > 40 m³ | G23: 10.485 | H23: 7.758 | I23: 3.145 | J23: R$/m³
B24: Residencial | D24: 0 | E24: Residencial | F24: Fixa | G24: 7.73 | H24: 5.71 | I24: 2.31 | J24: R$/mês
B25: Residencial | C25: 0 | D25: 3 | F25: 0 a 3 m³ | G25: 1.21 | H25: 0.89 | I25: 0.35 | J25: R$/m³ | K25: =G24+($D25-$C25)*G25 -> 11.36 | L25: =H24+($D25-$C25)*H25 -> 8.38 | M25: =I24+($D25-$C25)*I25 -> 3.36
B26: Residencial | C26: 3 | D26: 6 | F26: > 3 a 6 m³ | G26: 1.498 | H26: 1.109 | I26: 0.45 | J26: R$/m³ | K26: =K25+($D26-$C26)*G26 -> 15.854 | L26: =L25+($D26-$C26)*H26 -> 11.707 | M26: =M25+($D26-$C26)*I26 -> 4.71
B27: Residencial | C27: 6 | D27: 10 | F27: > 6 a 10 m³ | G27: 3.194 | H27: 2.364 | I27: 0.958 | J27: R$/m³ | K27: 28.63 | L27: 21.163 | M27: 8.542
B28: Residencial | C28: 10 | D28: 15 | F28: > 10 a 15 m³ | G28: 4.95 | H28: 3.663 | I28: 1.485 | J28: R$/m³ | K28: 53.38 | L28: 39.478 | M28: 15.967
B29: Residencial | C29: 15 | D29: 20 | F29: > 15 a 20 m³ | G29: 6.757 | H29: 5.001 | I29: 2.027 | J29: R$/m³ | K29: 87.165 | L29: 64.483 | M29: 26.102
B30: Residencial | C30: 20 | D30: 40 | F30: > 20 a 40 m³ | G30: 8.595 | H30: 6.36 | I30: 2.578 | J30: R$/m³ | K30: =K29+($D30-$C30)*G30 -> 259.065 | L30: 191.683 | M30: 77.662
B31: Residencial | C31: 40 | D31: 999999 | F31: > 40 m³ | G31: 10.485 | H31: 7.758 | I31: 3.145 | J31: R$/m³
B32: Comercial | D32: 0 | E32: Comercial | F32: Fixa | G32: 18.57 | H32: 13.74 | I32: 5.57 | J32: R$/mês
B33: Comercial | C33: 0 | D33: 3 | F33: 0 a 3 m³ | G33: 2.39 | H33: 1.77 | I33: 0.72 | J33: R$/m³ | K33: =G32+($D33-$C33)*G33 -> 25.74 | L33: =H32+($D33-$C33)*H33 -> 19.05 | M33: =I32+($D33-$C33)*I33 -> 7.73
B34: Comercial | C34: 3 | D34: 6 | F34: > 3 a 6 m³ | G34: 3.596 | H34: 2.66 | I34: 1.08 | J34: R$/m³ | K34: =K33+($D34-$C34)*G34 -> 36.528 | L34: =L33+($D34-$C34)*H34 -> 27.03 | M34: =M33+($D34-$C34)*I34 -> 10.97
B35: Comercial | C35: 6 | D35: 10 | F35: > 6 a 10 m³ | G35: 5.392 | H35: 3.99 | I35: 1.618 | J35: R$/m³ | K35: 58.096 | L35: 42.99 | M35: 17.442
B36: Comercial | C36: 10 | D36: 20 | F36: > 10 a 20 m³ | G36: 7.253 | H36: 5.368 | I36: 2.176 | J36: R$/m³ | K36: 130.626 | L36: 96.67 | M36: 39.202
B37: Comercial | C37: 20 | D37: 40 | F37: > 20 a 40 m³ | G37: 9.139 | H37: 6.764 | I37: 2.742 | J37: R$/m³ | K37: 313.406 | L37: 231.95 | M37: 94.042
B38: Comercial | C38: 40 | D38: 200 | F38: > 40 a 200 m³ | G38: 11.077 | H38: 8.197 | I38: 3.323 | J38: R$/m³ | K38: =K37+($D38-$C38)*G38 -> 2085.726 | L38: 1543.47 | M38: 625.722
B39: Comercial | C39: 200 | D39: 999999 | F39: > 200 m³ | G39: 13.026 | H39: 9.64 | I39: 3.908 | J39: R$/m³
B40: Industrial | D40: 0 | E40: Industrial | F40: Fixa | G40: 18.57 | H40: 13.74 | I40: 5.57 | J40: R$/mês
B41: Industrial | C41: 0 | D41: 3 | F41: 0 a 3 m³ | G41: 2.39 | H41: 1.77 | I41: 0.72 | J41: R$/m³ | K41: =G40+($D41-$C41)*G41 -> 25.74 | L41: =H40+($D41-$C41)*H41 -> 19.05 | M41: =I40+($D41-$C41)*I41 -> 7.73
B42: Industrial | C42: 3 | D42: 6 | F42: > 3 a 6 m³ | G42: 3.596 | H42: 2.66 | I42: 1.08 | J42: R$/m³ | K42: =K41+($D42-$C42)*G42 -> 36.528 | L42: =L41+($D42-$C42)*H42 -> 27.03 | M42: =M41+($D42-$C42)*I42 -> 10.97
B43: Industrial | C43: 6 | D43: 10 | F43: > 6 a 10 m³ | G43: 5.392 | H43: 3.99 | I43: 1.618 | J43: R$/m³ | K43: 58.096 | L43: 42.99 | M43: 17.442
B44: Industrial | C44: 10 | D44: 20 | F44: > 10 a 20 m³ | G44: 7.253 | H44: 5.368 | I44: 2.176 | J44: R$/m³ | K44: 130.626 | L44: 96.67 | M44: 39.202
B45: Industrial | C45: 20 | D45: 40 | F45: > 20 a 40 m³ | G45: 9.139 | H45: 6.764 | I45: 2.742 | J45: R$/m³ | K45: 313.406 | L45: 231.95 | M45: 94.042
B46: Industrial | C46: 40 | D46: 200 | F46: > 40 a 200 m³ | G46: 11.077 | H46: 8.197 | I46: 3.323 | J46: R$/m³ | K46: =K45+($D46-$C46)*G46 -> 2085.726 | L46: 1543.47 | M46: 625.722
B47: Industrial | C47: 200 | D47: 999999 | F47: > 200 m³ | G47: 13.026 | H47: 9.64 | I47: 3.908 | J47: R$/m³
B48: Pública | D48: 0 | E48: Pública | F48: Fixa | G48: 15.79 | H48: 11.68 | I48: 4.74 | J48: R$/mês
B49: Pública | C49: 0 | D49: 3 | F49: 0 a 3 m³ | G49: 2.27 | H49: 1.67 | I49: 0.69 | J49: R$/m³ | K49: =G48+($D49-$C49)*G49 -> 22.6 | L49: =H48+($D49-$C49)*H49 -> 16.69 | M49: =I48+($D49-$C49)*I49 -> 6.81
B50: Pública | C50: 3 | D50: 6 | F50: > 3 a 6 m³ | G50: 3.406 | H50: 2.52 | I50: 1.022 | J50: R$/m³ | K50: =K49+($D50-$C50)*G50 -> 32.818 | L50: =L49+($D50-$C50)*H50 -> 24.25 | M50: =M49+($D50-$C50)*I50 -> 9.876
B51: Pública | C51: 6 | D51: 10 | F51: > 6 a 10 m³ | G51: 5.11 | H51: 3.781 | I51: 1.533 | J51: R$/m³ | K51: 53.258 | L51: 39.374 | M51: 16.008
B52: Pública | C52: 10 | D52: 20 | F52: > 10 a 20 m³ | G52: 6.871 | H52: 5.085 | I52: 2.062 | J52: R$/m³ | K52: 121.968 | L52: 90.224 | M52: 36.628
B53: Pública | C53: 20 | D53: 40 | F53: > 20 a 40 m³ | G53: 8.658 | H53: 6.406 | I53: 2.597 | J53: R$/m³ | K53: 295.128 | L53: 218.344 | M53: 88.568
B54: Pública | C54: 40 | D54: 200 | F54: > 40 a 200 m³ | G54: 10.494 | H54: 7.765 | I54: 3.148 | J54: R$/m³ | K54: =K53+($D54-$C54)*G54 -> 1974.168 | L54: 1460.744 | M54: 592.248
B55: Pública | C55: 200 | D55: 999999 | F55: > 200 m³ | G55: 12.341 | H55: 9.133 | I55: 3.702 | J55: R$/m³
